Cogmind - Beta 13 @@@ ROGUE MODE // 2024.04.24 @ 15:30:12 Player: Faunarr Result: Destroyed by P-60 Hacker with Shock Rifle Performance ------------- Evolutions (4) 2000 Regions Visited (10) 2000 Robots Destroyed (112) 560 Value Destroyed (3655) 3655 Prototype IDs (25) 500 Alien Tech Used (0) 0 Bonus (876) 876 TOTAL SCORE: 9591 Bonus ------- High Alert Combat Kills 376 Entered Garrisons 200 Aligned with FarCom 300 Cogmind --------- Core Integrity 0/850 Matter 255/300 Energy 98/100 System Corruption 9% Temperature Cool (0) Movement Core (50) Location -6/Factory Parts ------- > --- POWER (1) -------- (None) > --- PROPULSION (3) --- (None) > --- UTILITY (7) ------ (None) > --- WEAPON (4) ------- Improved Datajack > --- INVENTORY (5) ---- Advanced Signal Interpreter Advanced Targeting Computer EM Disruption Field Peak State ------------ > --- POWER ------------ Ion Engine > --- PROPULSION ------- Wheel Wheel Wheel > --- UTILITY ---------- Advanced Heat Sink Huge Storage Unit Trap Scanner Improved Weapon Shielding Improved Medium Armor Plating Hacking Suite > --- WEAPON ----------- AWS/Autocannon > --- INVENTORY -------- Light Nuclear Core Improved Heat Sink Large Matter Pod Advanced Targeting Computer Advanced ECM Suite Core Shielding Hardened Medium Armor Plating Improved Medium Armor Plating Shield Generator Improved EM Shotgun Shock Rifle Plasma Cannon Plasma Cannon Heavy Assault Rifle Mini Assault Cannon Rocket Launcher Rocket Launcher Improved Datajack Remote Datajack Mining Laser Katana Greatsword Makeshift Spear [Rating: 60] Favorites ----------- Power Ion Engine Engine Ion Engine Power Core Light Fission Core Propulsion Wheel Treads Light Treads Leg Aluminum Leg Wheel Wheel Hover Unit Improved Gravmag System Flight Unit Nuclear Pulse Thruster Utility Huge Storage Unit Device Shield Generator Storage Huge Storage Unit Processor 0b10 Alert Chip Hackware Hacking Suite Protection Improved Medium Armor Plating Weapon Shock Rifle Energy Gun Shock Rifle Energy Cannon Plasma Cannon Ballistic Gun Autogun Ballistic Cannon AWS/Autocannon Launcher Rocket Launcher Special Weapon Remote Datajack Slashing Weapon Katana Piercing Weapon Makeshift Spear Special Melee Weapon Improved Datajack Build | -11 -10 -10 -9 -9 -9 -8 -8 -7 -7 -6 ------- Run | Yrd Mat Min Mat Min Exi Min Mat Fac Gar Fac Slots Evolved 8 | . . . 2 . . . 2 2 . 2 Power . | . . . . . . . . . . . Propulsion 1 | . . . 1 . . . . . . . Utility 5 | . . . 1 . . . 1 2 . 1 Weapon 2 | . . . . . . . 1 . . 1 Parts Attached 86 | 7 1 11 12 2 1 . 9 14 21 8 Power 8 | 1 . 2 1 . . . . 1 2 1 Engine 6 | 1 . 2 1 . . . . 1 1 . Core 2 | . . . . . . . . . 1 1 Reactor . | . . . . . . . . . . . Propulsion 14 | 2 . 3 2 1 . . 1 3 . 2 Treads 3 | 2 . . 1 . . . . . . . Leg 1 | . . 1 . . . . . . . . Wheel 8 | . . 2 1 1 . . 1 3 . . Hover 1 | . . . . . . . . . . 1 Flight 1 | . . . . . . . . . . 1 Utility 34 | 2 1 3 4 . 1 . 4 8 7 4 Device 17 | 1 . 1 1 . . . 4 4 3 3 Storage 5 | 1 . 1 2 . . . . . . 1 Processor 1 | . . . . . 1 . . . . . Hackware 1 | . . . . . . . . 1 . . Protection 10 | . 1 1 1 . . . . 3 4 . Artifact . | . . . . . . . . . . . Weapon 30 | 2 . 3 5 1 . . 4 2 12 1 Energy Gun 8 | 2 . 1 2 . . . 2 . 1 . Energy Cannon 1 | . . . . . . . . . 1 . Ballistic Gun 3 | . . . 3 . . . . . . . Ballistic Cannon 4 | . . . . . . . 1 1 2 . Launcher 5 | . . 2 . 1 . . . . 2 . Special Weapon 2 | . . . . . . . . . 2 . Impact Weapon . | . . . . . . . . . . . Slashing Weapon 3 | . . . . . . . . . 3 . Piercing Weapon 2 | . . . . . . . 1 1 . . Special Melee Weapon 2 | . . . . . . . . . 1 1 Unidentified Prototypes 4 | . . . 1 . 2 . . . 1 . Parts Lost 48 | . 1 5 3 3 . . 6 3 22 5 Power 6 | . . 1 1 . . . . 1 2 1 Propulsion 13 | . . 2 1 1 . . 3 1 3 2 Utility 18 | . 1 1 1 1 . . 1 1 10 2 Weapon 11 | . . 1 . 1 . . 2 . 7 . Highest Loss Streak 11 | . 1 3 3 2 . . 5 1 11 2 To Critical Strikes . | . . . . . . . . . . . Average Slot Usage (%) 77 | . 99 89 94 89 84 88 83 71 68 6 Engine 8 | . 14 14 10 11 11 11 9 6 6 . Treads 6 | . 28 20 3 11 11 11 2 . . . Wheel 13 | . . 1 24 21 22 22 15 9 13 . Device 14 | . 3 . 20 17 11 11 18 24 8 1 Storage 8 | . 14 14 11 11 11 11 9 7 6 . Processor 2 | . . . . . 7 11 6 . . . Hackware 2 | . . . . . . . . 7 6 . Protection 4 | . 9 9 1 . . . . 5 15 . Energy Gun 6 | . 28 20 4 5 . . 13 . . . Ballistic Gun 1 | . . . 17 6 . . . . . . Ballistic Cannon 2 | . . . . . . . 1 6 5 . Launcher 3 | . . 7 . 5 11 11 3 . . . Naked Turns 291 | . . . . . . . . . 41 250 Heaviest Build 162 | 15 21 40 94 95 91 91 149 158 162 9 Greatest Support 40 | 40 40 40 30 20 20 20 20 30 30 10 Greatest Overweight (x) 33 | 4 . 11 4 9 30 4 29 15 33 2 Average Overweight (x) 4 | . . . 2 4 4 4 5 12 5 . Largest Inventory Capacity 25 | 8 8 15 25 25 25 25 25 25 25 5 Average Capacity 21 | 7 8 10 20 25 25 25 25 25 24 5 Most Carried 25 | 5 6 9 16 20 23 23 25 25 25 5 Average Carried 18 | 1 5 5 12 18 21 23 22 23 21 3 Final Capacity 25 | 8 8 15 25 25 25 25 25 25 5 5 Final Carried 24 | 1 6 7 16 19 23 23 23 24 5 3 Class Distribution -------------------- 29% | Scavenger-Mutant 27% | Mutant 13% | Tank 11% | Scavenger-Tank 8% | Skirmisher 7% | Scavenger-Skirmisher Dominant Class ---------------- Mutant | -10/Materials Mutant | -10/Mines Scavenger-Mutant | -9/Materials Scavenger-Mutant | -9/Mines Scavenger-Mutant | -9/Exiles Scavenger-Mutant | -8/Mines Scavenger-Skirmisher | -8/Materials Tank | -7/Factory Scavenger-Tank | -7/Garrison Mutant | -6/Factory Resources | -11 -10 -10 -9 -9 -9 -8 -8 -7 -7 -6 ----------- Run | Yrd Mat Min Mat Min Exi Min Mat Fac Gar Fac Matter Collected 1388 | 203 70 192 294 43 89 . 71 136 286 4 Remotely . | . . . . . . . . . . . Salvage Created 2891 | 19 237 316 560 32 . . 331 956 440 . Parts 201 | 4 19 28 27 3 . . 31 65 24 . Haulers Intercepted 1 | . . . 1 . . . . . . . Recyclers Shooed . | . . . . . . . . . . . Parts Field Recycled . | . . . . . . . . . . . Retrieved Matter . | . . . . . . . . . . . Parts Self-Destructed . | . . . . . . . . . . . Prevented . | . . . . . . . . . . . Kills | -11 -10 -10 -9 -9 -9 -8 -8 -7 -7 -6 ------- Run | Yrd Mat Min Mat Min Exi Min Mat Fac Gar Fac Combat Hostiles Destroyed 89 | . 7 8 11 7 . . 13 24 19 . Melee 4 | . . . . . . . 1 . 3 . Guns 26 | . 6 3 11 2 . . 4 . . . Cannons 42 | . . . . . . . 5 23 14 . AOE 16 | . . 5 . 5 . . 3 1 2 . Classes Destroyed 15 | 1 2 4 2 . . . 4 1 1 . Worker 6 | . . 1 . 1 . . 2 2 . . Builder 8 | . . 1 . . . . 1 6 . . Tunneler 7 | 1 1 5 . . . . . . . . Hauler 1 | . . . 1 . . . . . . . Recycler 3 | . . 2 . . . . . 1 . . Watcher 7 | . . . . . . . 2 5 . . Swarmer 23 | . 3 . . . . . 7 3 10 . Grunt 44 | . 4 6 10 . . . 2 17 5 . Duelist 1 | . . . 1 . . . . . . . Sentry 4 | . . . . . . . 1 1 2 . Specialist 2 | . . . . . . . 2 . . . Hunter 1 | . . . . . . . . . 1 . Programmer 4 | . . . . . . . . 3 1 . Heavy 1 | . . . . . . . 1 . . . Assembled 9 | . . 2 . 7 . . . . . . Best Kill Streak 9 | 1 6 8 3 8 . . 8 9 8 . Combat Bots Only 8 | . 5 4 3 7 . . 7 6 8 . Max Kills in Single Turn 5 | 1 1 5 1 4 . . 3 3 2 . Gunslinging . | . . . . . . . . . . . Exploded 3 | . . 2 . 3 . . 3 1 2 . Melee 1 | . . . . . . . 1 . 1 . Uniques/NPCs Destroyed . | . . . . . . . . . . . Combat | -11 -10 -10 -9 -9 -9 -8 -8 -7 -7 -6 -------- Run | Yrd Mat Min Mat Min Exi Min Mat Fac Gar Fac Hostile Shots Fired 565 | . 38 35 36 21 . . 31 43 246 115 Missed 165 | . 4 5 10 6 . . 8 12 70 50 Damage Taken 5806 | 1 347 574 296 492 . . 434 655 1857 1150 Core 1810 | . 68 63 68 106 . . 85 103 466 851 Absorbed by Shields 267 | . . . 64 113 . . 23 . 67 . Redirected to Shielding 121 | . . . . . . . . . 121 . Core Remaining (%) 61 | 100 . 47 . . . 56 84 . 18 . Volleys Fired 94 | 1 17 26 24 8 . . 5 . 13 . Largest 3 | 2 2 2 2 2 . . 3 . 3 . Hottest 178 | 100 100 100 73 56 . . 133 . 178 . Shots Fired 295 | 2 34 44 48 15 . . 28 69 55 . Gun 138 | 2 34 33 48 8 . . 10 . 3 . Cannon 130 | . . . . . . . 17 69 44 . Launcher 25 | . . 11 . 7 . . 1 . 6 . Special 2 | . . . . . . . . . 2 . Kinetic 178 | . . . 45 8 . . 17 69 39 . Thermal 74 | 2 34 33 . . . . . . 5 . Explosive 25 | . . 11 . 7 . . 1 . 6 . Electromagnetic 16 | . . . 3 . . . 10 . 3 . Robot Hit Streak 17 | 2 7 11 9 3 . . 11 17 10 . Robot Miss Streak 5 | . 2 1 2 2 . . 5 4 3 . Penetration Max . | . . . . . . . . . . . Secondary Targets 1 | . . . 1 . . . . . . . Max Gunslinging Chain 1 | . . . 1 . . . . . . . Autonomous 122 | . . . . . . . 17 69 36 . Shots Hit Robots 208 | 2 24 26 31 6 . . 22 52 45 . Core Hits 148 | 2 12 27 15 26 . . 17 28 19 2 Critical Kills 1 | . . . 1 . . . . . . . Critical Parts Destroyed . | . . . . . . . . . . . Critical Strikes 21 | 1 2 1 1 . . . 5 9 2 . Burn 4 | 1 2 1 . . . . . . . . Destroy 1 | . . . 1 . . . . . . . Blast 13 | . . . . . . . 3 9 1 . Sever 1 | . . . . . . . . . 1 . Impale 2 | . . . . . . . 2 . . . Melee Attacks 26 | . . . . . . . 17 1 7 1 Impact . | . . . . . . . . . . . Slashing 7 | . . . . . . . . . 7 . Piercing 18 | . . . . . . . 17 1 . . Sneak Attacks 2 | . . . . . . . 2 . . . Combat Hostiles . | . . . . . . . . . . . Follow-up Attacks . | . . . . . . . . . . . Damage Inflicted 11775 | 28 299 1055 490 641 . . 1717 4899 2617 29 Guns 1325 | 26 299 273 478 87 . . 117 . 45 . Cannons 7405 | . . . . . . . 1267 4094 2044 . Explosions 2483 | . . 766 . 533 . . 183 735 266 . Melee 412 | . . . . . . . 150 . 262 . Ramming 150 | 2 . 16 12 21 . . . 70 . 29 Kinetic 7813 | . . . 420 87 . . 1267 4094 1945 . Thermal 1173 | 26 299 273 . . . . . 476 99 . Explosive 2007 | . . 766 . 533 . . 183 259 266 . Electromagnetic 220 | . . . 58 . . . 117 . 45 . Impact . | . . . . . . . . . . . Slashing 262 | . . . . . . . . . 262 . Piercing 150 | . . . . . . . 150 . . . Highest Corruption 9 | . . 5 . . . . . . 1 9 Average Corruption 5 | . . 5 . . . . . . 1 5 Corruption Purged . | . . . . . . . . . . . Corruption Blocked . | . . . . . . . . . . . Effects 19 | . . 10 . . . . . . . 9 Message Errors 4 | . . 3 . . . . . . . 1 Matter Fused 3 | . . 1 . . . . . . . 2 Heat Flow Errors 2 | . . 1 . . . . . . . 1 Energy Discharges 4 | . . 3 . . . . . . . 1 Parts Rejected 1 | . . 1 . . . . . . . . Data Loss (minor) 4 | . . 1 . . . . . . . 3 Data Loss (major) 1 | . . . . . . . . . . 1 Overload Shots . | . . . . . . . . . . . Overflow Damage 1715 | . . 30 . 3 . . 279 996 407 . Projectiles 1461 | . . . . . . . 275 879 307 . Explosions 160 | . . 30 . 3 . . 4 117 6 . Melee 94 | . . . . . . . . . 94 . Knockbacks 27 | . . . 1 1 . . 5 14 6 . Impact 4 | . . . 1 1 . . . 2 . . Kinetic 17 | . . . . . . . 4 9 4 . Secondary 6 | . . . . . . . 1 3 2 . Self-Inflicted Damage 641 | 1 . 183 5 100 . . . 214 125 13 Shots 16 | . . 5 . 4 . . . 3 4 . Rammed 23 | 1 . 6 2 1 . . . 6 . 7 Targets Rammed 23 | 1 . 6 2 1 . . . 6 . 7 Kicked . | . . . . . . . . . . . Crushed . | . . . . . . . . . . . Highest Temperature 469 | 39 469 289 36 10 . . 12 . 430 136 Average Temperature 124 | 20 174 111 12 7 . . 7 . 240 80 Received Heat Transfer 1134 | . 114 144 122 . . . 27 201 379 147 Effects 9 | . 3 . . . . . . . 6 . Shutdowns 2 | . 2 . . . . . . . . . Energy Bleed 2 | . 1 . . . . . . . 1 . Interference 3 | . . . . . . . . . 3 . Matter Decay 1 | . . . . . . . . . 1 . Short Circuit 1 | . . . . . . . . . 1 . Siege Activations . | . . . . . . . . . . . Robots Corrupted . | . . . . . . . . . . . Combat Hostiles . | . . . . . . . . . . . Parts Fried . | . . . . . . . . . . . Impact Corruptions 3 | . . . . . . . 1 2 . . Robots Melted 1 | . 1 . . . . . . . . . Combat Hostiles 1 | . 1 . . . . . . . . . Parts Melted 3 | . 2 1 . . . . . . . . Heat Transferred 2622 | 148 1036 888 . . . . . 350 200 . Parts Sabotaged . | . . . . . . . . . . . Parts Stolen . | . . . . . . . . . . . Parts Stripped . | . . . . . . . . . . . Power Chain Reactions . | . . . . . . . . . . . Alert | -11 -10 -10 -9 -9 -9 -8 -8 -7 -7 -6 ------- Run | Yrd Mat Min Mat Min Exi Min Mat Fac Gar Fac Peak Influence 937 | 5 133 233 223 65 . . 184 693 937 663 Initial 485 | . 3 25 14 37 . . . 83 485 428 Average 218 | 1 75 66 109 35 . . 53 187 789 507 Maximum Alert Level 3 | . . 1 1 . . . . 2 3 2 Low Security (%) 73 | 100 100 98 94 100 . 100 100 77 . . Level 1 2 | . . 1 5 . . . . 7 . . Level 2 12 | . . . . . . . . 15 13 100 Level 3 10 | . . . . . . . . . 86 . Level 4 . | . . . . . . . . . . . Level 5 . | . . . . . . . . . . . High Security . | . . . . . . . . . . . Max Security . | . . . . . . . . . . . Squads Dispatched 19 | . 2 . 1 . . . 7 6 . 3 Investigation 3 | . 1 . . . . . 1 1 . . Extermination 4 | . . . . . . . . 3 . 1 Reinforcement 9 | . 1 . 1 . . . 3 2 . 2 Assault . | . . . . . . . . . . . Garrison 3 | . . . . . . . 3 . . . Intercept . | . . . . . . . . . . . Searches Triggered . | . . . . . . . . . . . Construction Impeded . | . . . . . . . . . . . Haulers Reinforced . | . . . . . . . . . . . Active Scanning Responses . | . . . . . . . . . . . Cargo Convoy Interrupts . | . . . . . . . . . . . Stealth | -11 -10 -10 -9 -9 -9 -8 -8 -7 -7 -6 --------- Run | Yrd Mat Min Mat Min Exi Min Mat Fac Gar Fac Distress Signals 6 | . 1 . 1 . . . 1 3 . . Communications Jammed . | . . . . . . . . . . . Distress Signals . | . . . . . . . . . . . Times Spotted 146 | . 10 8 17 14 . . 19 29 19 30 Peak Tracking Total 12 | . 5 4 6 12 . . 5 5 4 10 Tactical Retreats 14 | . . . . . . . 2 3 1 8 Traps | -11 -10 -10 -9 -9 -9 -8 -8 -7 -7 -6 ------- Run | Yrd Mat Min Mat Min Exi Min Mat Fac Gar Fac Traps Triggered 9 | . 1 . . . . . . . 7 1 Indirectly . | . . . . . . . . . . . Trap Hack Attempts . | . . . . . . . . . . . Triggered . | . . . . . . . . . . . Disarmed . | . . . . . . . . . . . Reprogrammed . | . . . . . . . . . . . Reused . | . . . . . . . . . . . Traps Extracted . | . . . . . . . . . . . Installed . | . . . . . . . . . . . Triggered . | . . . . . . . . . . . Machines | -11 -10 -10 -9 -9 -9 -8 -8 -7 -7 -6 ---------- Run | Yrd Mat Min Mat Min Exi Min Mat Fac Gar Fac Machines Disabled 16 | . . 1 1 . . . . 13 1 . Max in Single Turn 5 | . . 1 1 . . . . 5 1 . Garrison Relay 1 | . . . . . . . . . 1 . Machines Repaired . | . . . . . . . . . . . Machines Dismantled . | . . . . . . . . . . . Machines Sabotaged . | . . . . . . . . . . . Overloaded Fab Kills . | . . . . . . . . . . . Hacking | -11 -10 -10 -9 -9 -9 -8 -8 -7 -7 -6 --------- Run | Yrd Mat Min Mat Min Exi Min Mat Fac Gar Fac Machines Accessed 11 | . . . 1 . 5 . 1 3 1 . Terminals 4 | . . . 1 . . . 1 1 1 . Fabricators . | . . . . . . . . . . . Repair Stations . | . . . . . . . . . . . Recycling Units . | . . . . . . . . . . . Scanalyzers . | . . . . . . . . . . . Garrison Access 2 | . . . . . . . . 2 . . Total Hacks 60 | . . . 2 . 50 . 3 4 1 . Successful 56 | . . . 2 . 50 . 1 2 1 . Failed 4 | . . . . . . . 2 2 . . Catastrophic 1 | . . . . . . . . 1 . . Database Lockouts . | . . . . . . . . . . . Manual 5 | . . . 2 . 1 . 1 1 . . Terminals 7 | . . . 2 . . . 3 1 1 . Fabricators . | . . . . . . . . . . . Repair Stations . | . . . . . . . . . . . Recycling Units . | . . . . . . . . . . . Scanalyzers . | . . . . . . . . . . . Garrison Access 3 | . . . . . . . . 3 . . Terminal Hacks 55 | . . . 2 . 50 . 1 1 1 . Record 49 | . . . . . 49 . . . . . Open DSF 1 | . . . . . . . . 1 . . Emergency Access Points 1 | . . . . . . . . . 1 . Locate Traps 2 | . . . 1 . . . 1 . . . Patrol Status 1 | . . . 1 . . . . . . . Derelict Proto ID Bank 1 | . . . . . 1 . . . . . Fabricator Hacks . | . . . . . . . . . . . Repair Station Hacks . | . . . . . . . . . . . Recycling Unit Hacks . | . . . . . . . . . . . Scanalyzer . | . . . . . . . . . . . Garrison Access Hacks 1 | . . . . . . . . 1 . . Unlock Access 1 | . . . . . . . . 1 . . Unauthorized Hacks . | . . . . . . . . . . . Terminals . | . . . . . . . . . . . Fabricators . | . . . . . . . . . . . Repair Stations . | . . . . . . . . . . . Recycling Units . | . . . . . . . . . . . Scanalyzers . | . . . . . . . . . . . Garrison Access . | . . . . . . . . . . . Data Cores Recovered . | . . . . . . . . . . . Used . | . . . . . . . . . . . Hacking Detections 4 | . . . . . . . 1 2 1 . Full Trace Events 1 | . . . . . . . . 1 . . Feedback Events . | . . . . . . . . . . . Feedback Blocked . | . . . . . . . . . . . Robot Schematics Acquired . | . . . . . . . . . . . Robots Built . | . . . . . . . . . . . Authchips . | . . . . . . . . . . . Time . | . . . . . . . . . . . Total Robot Build Rating . | . . . . . . . . . . . Part Schematics Acquired . | . . . . . . . . . . . Parts Built . | . . . . . . . . . . . Authchips . | . . . . . . . . . . . Time . | . . . . . . . . . . . Total Part Build Rating . | . . . . . . . . . . . Parts Repaired . | . . . . . . . . . . . Time . | . . . . . . . . . . . Parts Recycled . | . . . . . . . . . . . Recycled Matter . | . . . . . . . . . . . Retrieved Matter . | . . . . . . . . . . . Retrieved Components . | . . . . . . . . . . . Parts Scanalyzed . | . . . . . . . . . . . Part Schematics Acquired . | . . . . . . . . . . . Parts Damaged . | . . . . . . . . . . . Bothacking | -11 -10 -10 -9 -9 -9 -8 -8 -7 -7 -6 ------------ Run | Yrd Mat Min Mat Min Exi Min Mat Fac Gar Fac Used RIF Installer . | . . . . . . . . . . . Robots Hacked 1 | . . . . . . . . . 1 . Non-combat . | . . . . . . . . . . . Combat 1 | . . . . . . . . . 1 . Robot Hacks Applied 1 | . . . . . . . . . 1 . parse_system 1 | . . . . . . . . . 1 . Relay Couplers Released 3 | . . . . . . . . . 3 . Machine Destruction 3 | . . . . . . . . . 3 . Fabnet Peak Effective % . | . . . . . . . . . . . Robots Rewired . | . . . . . . . . . . . Allies Hacked . | . . . . . . . . . . . Hacks Repelled . | . . . . . . . . . . . Allies | -11 -10 -10 -9 -9 -9 -8 -8 -7 -7 -6 -------- Run | Yrd Mat Min Mat Min Exi Min Mat Fac Gar Fac Total Allies . | . . . . . . . . . . . Largest Group . | . . . . . . . . . . . Highest-Rated Group . | . . . . . . . . . . . Highest-Rated Ally . | . . . . . . . . . . . Total Orders . | . . . . . . . . . . . Ally Attacks . | . . . . . . . . . . . Total Damage . | . . . . . . . . . . . Kills . | . . . . . . . . . . . Allies Corrupted . | . . . . . . . . . . . Allies Melted . | . . . . . . . . . . . Intel | -11 -10 -10 -9 -9 -9 -8 -8 -7 -7 -6 ------- Run | Yrd Mat Min Mat Min Exi Min Mat Fac Gar Fac Robot Analysis Total . | . . . . . . . . . . . Derelict Logs Recovered . | . . . . . . . . . . . Drone Launches 2 | . . . . . . . . . . 2 Drone Recoveries . | . . . . . . . . . . . Exploration | -11 -10 -10 -9 -9 -9 -8 -8 -7 -7 -6 ------------- Run | Yrd Mat Min Mat Min Exi Min Mat Fac Gar Fac Turns Passed 8494 | 84 512 538 607 458 1173 192 1515 1967 927 521 Spaces Moved 4672 | 48 188 234 279 303 724 138 717 731 435 875 Core 634 | 24 . 14 . . 11 . 3 . 61 521 Treads 401 | 24 188 189 . . . . . . . . Legs 6 | . . 6 . . . . . . . . Wheels 3277 | . . 25 279 303 713 138 714 731 374 . Hover 138 | . . . . . . . . . . 138 Flight 216 | . . . . . . . . . . 216 Fastest Speed 40 | 50 160 95 95 140 140 140 140 155 50 40 Average Speed 155 | 134 160 183 115 141 161 140 164 261 181 54 Slowest Speed 1700 | 250 160 600 140 215 1550 140 1500 305 1700 150 Overloaded Moves . | . . . . . . . . . . . Propulsion Burnouts . | . . . . . . . . . . . Robots Hopped . | . . . . . . . . . . . Cave-ins Triggered . | . . . . . . . . . . . Time Travels 1 | . . . . . 1 . . . . . Exploration Rate (%) 40 | 4 32 47 27 60 93 57 41 20 45 22 Regions Visited 10 Branch Regions 4 Pre-discovered Areas 1 | . . . . . 1 . . . . . Known Exits Taken 1 | . . . . . . . . 1 . . Unknown Exits Taken 8 | 1 1 1 1 1 1 1 1 . . . Scrap Searched 3 | . . 1 . 1 . 1 . . . . Spaces Dug 11 | . . . . . . . 10 1 . . Terrain Destroyed 235 | . . 78 . 49 . . 19 63 26 . Melee 11 | . . . . . . . 10 1 . . Projectile 29 | . . . . . . . 2 16 11 . AOE 195 | . . 78 . 49 . . 7 46 15 . Terrain Rammed . | . . . . . . . . . . . Walls Destroyed . | . . . . . . . . . . . Machines Disabled . | . . . . . . . . . . . Actions | -11 -10 -10 -9 -9 -9 -8 -8 -7 -7 -6 --------- Run | Yrd Mat Min Mat Min Exi Min Mat Fac Gar Fac Total 5715 | 64 365 293 522 318 728 137 1029 781 554 924 Wait 653 | . 154 6 188 1 . . 268 7 10 19 Move 4657 | 47 187 233 278 302 723 137 716 730 429 875 Hop . | . . . . . . . . . . . Pick Up 85 | 8 6 9 16 4 4 . 10 14 4 10 Fast Attach . | . . . . . . . . . . . Attach 67 | 7 1 7 5 1 1 . 6 9 22 8 Detach 11 | . . . . . . . 1 2 8 . Swap 20 | . . 4 7 1 . . 3 5 . . Drop 20 | . . 2 2 . . . 3 7 2 4 Fire 94 | 1 17 26 24 8 . . 5 . 13 . Melee 26 | . . . . . . . 17 1 7 1 Ram 17 | 1 . . 2 1 . . . 6 . 7 Kick . | . . . . . . . . . . . Crush 6 | . . 6 . . . . . . . . Escape Stasis 59 | . . . . . . . . . 59 . Rewire . | . . . . . . . . . . . Trap . | . . . . . . . . . . . Miscellaneous . | . . . . . . . . . . . Route ------- -11/Scrapyard -10/Materials -10/Mines (discovered 2 exits: *Mat x2) -9/Materials -9/Mines (discovered 2 exits: *Exi / [*Zio]) -9/Exiles (discovered 2 exits: [*Min x2]) -8/Mines -8/Materials -7/Factory -7/Garrison (discovered 2 exits: *Fac x2) -6/Factory History --------- Turn | Location | Event 12 | -11/Scrapyard | Discovered new exit (range 16) 85 | -11/Scrapyard | Entered Materials 308 | -10/Materials | Build established: Mutant 363 | -10/Materials | Discovered new exit (range 16) 597 | -10/Materials | Entered Mines 605 | -10/Mines | Met a Derelict bent on vengeance 663 | -10/Mines | Discovered new exit (range 4) 711 | -10/Mines | Excavation squad dispatched 711 | -10/Mines | A large section of the Mines collapsed 961 | -10/Mines | Excavation squad dispatched 967 | -10/Mines | Discovered new exit (range 11) 993 | -10/Mines | Core integrity fell below 50% 1022 | -10/Mines | Lost 3 parts (2n1w) 1135 | -10/Mines | Entered Materials 1135 | -9/Materials | Evolved 2 slots: Propulsion x1, Utility x1 1306 | -9/Materials | Lost 3 parts (1p1n1u) 1737 | -9/Materials | Discovered new exit (range 5) 1742 | -9/Materials | Entered Mines 1806 | -9/Mines | Build established: Scavenger-Mutant 1813 | -9/Mines | A weapon hastily lodged in a ceiling crevice suddenly fell to the ground 1956 | -9/Mines | Received a Rocket Launcher from a helpful Derelict 1965 | -9/Mines | Assembled infested the area 2007 | -9/Mines | Destroyed 7 combat bots 2017 | -9/Mines | Met 8R-AWN 2158 | -9/Mines | A Derelict revealed a hidden shortcut to a safe place 2192 | -9/Mines | Discovered new exit (range 5) 2200 | -9/Mines | Entered Exiles 2219 | -9/Exiles | Discovered new exit (range 15) 2235 | -9/Exiles | Welcomed by 8R-AWN 2266 | -9/Exiles | Met EX-HEX 2335 | -9/Exiles | Met EX-BIN 2501 | -9/Exiles | Aligned with FarCom system 2517 | -9/Exiles | Given EX-Vault access code 2571 | -9/Exiles | Opened EX-Vault 2575 | -9/Exiles | Found Prototype Device 2576 | -9/Exiles | Identified Chronowheel 2576 | -9/Exiles | Activated Chronowheel 2576 | -9/Exiles | Spacetime reconverged on an earlier point 2579 | -9/Exiles | Found Prototype Processor 2583 | -9/Exiles | Found Prototype Ballistic Cannon 2584 | -9/Exiles | Identified 0b10 Alert Chip 2631 | -9/Exiles | Warned to stay clear of 0b10 Research branches 2686 | -9/Exiles | Identified AWS/Autocannon 2756 | -9/Exiles | Met EX-DEC 2773 | -9/Exiles | Learned location of Zion (-7) 2972 | -9/Exiles | Visited The Gauntlet 3244 | -9/Exiles | Discovered new exit (range 10) 3373 | -9/Exiles | Stole two prototypes: 0b10 Alert Chip, AWS/Autocannon 3373 | -9/Exiles | Entered Mines 3523 | -8/Mines | Discovered new exit (range 15) 3565 | -8/Mines | Entered Materials 3565 | -8/Materials | Evolved 2 slots: Utility x1, Weapon x1 3873 | -8/Materials | Build established: Scavenger-Skirmisher 4007 | -8/Materials | Destroyed 7 combat bots 4632 | -8/Materials | Garrison activated, responded to threat 4740 | -8/Materials | Lost 5 parts (2n1u2w) 4987 | -8/Materials | Discovered new exit (range 15) 5080 | -8/Materials | Entered Factory 5080 | -7/Factory | Evolved 2 slots: Utility x2 5082 | -7/Factory | FarCom data flow suspended 5178 | -7/Factory | Build established: Skirmisher 5851 | -7/Factory | Build established: Tank 7031 | -7/Factory | Build established: Scavenger-Tank 7046 | -7/Factory | Identified exit to Garrison 7047 | -7/Factory | Entered Garrison 7126 | -7/Garrison | Triggered checkpoint 7159 | -7/Garrison | Triggered checkpoint 7171 | -7/Garrison | Triggered checkpoint 7197 | -7/Garrison | Destroyed 8 combat bots 7227 | -7/Garrison | Triggered checkpoint 7343 | -7/Garrison | Discovered new exit (range 10) 7367 | -7/Garrison | Attempted to access garrison exit controls, blocked by remote lockdown 7441 | -7/Garrison | Garrison Relay disabled 7617 | -7/Garrison | Triggered checkpoint 7671 | -7/Garrison | Lost 3 parts (2u1w) 7775 | -7/Garrison | Triggered checkpoint 7843 | -7/Garrison | Core integrity fell below 50% 7873 | -7/Garrison | Lost 11 parts (2p2n5u2w) 7933 | -7/Garrison | Released all parts (6) 7964 | -7/Garrison | Lost 5 parts (1u4w) 7967 | -7/Garrison | Core integrity fell below 20% 7967 | -7/Garrison | Discovered new exit (range 12) 7974 | -7/Garrison | Entered Factory 7974 | -6/Factory | Evolved 2 slots: Utility x1, Weapon x1 8078 | -6/Factory | Build established: Mutant 8372 | -6/Factory | Spotted B-75 Beast 8388 | -6/Factory | Core integrity fell below 50% 8479 | -6/Factory | Core integrity fell below 20% 8495 | -6/Factory | Destroyed by P-60 Hacker with Shock Rifle Last Messages --------------- 08387_ O-24 Administrator: "IFF HANDSHAKE FAILED. SECURING TERMINAL." 08389_ Drone released from Drone Bay. 08390_ Dropped Drone Bay. 08390_ Drone destroyed. 08391_ >> Lost connection to Drone. 08391_ Acquired 4 matter. 08393_ Matter Pump disabled. 08393_ Drone destroyed. 08394_ P-60 Hacker resets P-60 Hacker, system corruption cleaned. 08408_ System corrupted: Energy discharge (-40). 08418_ Slammed into U-05 Engineer. 08430_ Door malfunctions. 08432_ System corrupted: Matter fused (-9). 08445_ ALERT: Cargo convoy en route, clear transfer corridor. 08459_ OHH/WMIHK| >&Q6:V